fUSD/lending_fUSD_20260622
["ID","MTS","AMOUNT","RATE_DAILY","PERIOD"]
[426030208,1782121853000,-1113.10721287,0.00020394,2]
[426030215,1782121853000,-500.0,0.00020727,2]
[426030217,1782121853000,-240.79800116,0.000208,2]
[426030212,1782121853000,-150.0,0.00020599,4]
[426030210,1782121853000,-150.0,0.00020508,4]
[426030216,1782121853000,-505.0,0.0002075,2]
[426030209,1782121853000,-240.79800116,0.000204,2]
[426030207,1782121853000,-382.7,0.00020381,2]
[426030204,1782121853000,-500.0,0.00020362,2]
[426030218,1782121853000,-263.500386,0.00020821,2]
[426030205,1782121853000,-151.0,0.00020362,2]
[426030200,1782121853000,-500.0,0.00020362,2]
[426030203,1782121853000,-151.0,0.00020362,2]
[426030201,1782121853000,-151.0,0.00020362,2]
[426030198,1782121853000,-500.0,0.00020362,2]
[426030199,1782121853000,-151.0,0.00020362,2]
[426030197,1782121853000,-151.0,0.00020362,2]
[426030195,1782121853000,-151.0,0.00020362,2]
[426030206,1782121853000,-151.0,0.00020362,2]
[426030196,1782121853000,-500.0,0.00020362,2]
[426030202,1782121853000,-500.0,0.00020362,2]
[426030299,1782121854000,-573.95,0.00022,2]
[426030311,1782121854000,-1657.66,0.00022466,2]
[426030308,1782121854000,-785.0,0.00022268,2]
[426030310,1782121854000,-186.82441349,0.00022407,2]
[426030307,1782121854000,-505.0,0.0002225,4]
[426030298,1782121854000,-1779.0,0.00022,2]
[426030305,1782121854000,-2157.14243826,0.00022006,2]
[426030316,1782121854000,-200.0,0.00022501,2]
[426030306,1782121854000,-1337.69,0.00022124,2]
[426030313,1782121854000,-768.27,0.00022466,2]
[426030317,1782121854000,-204.12593408,0.00022522,2]
[426030315,1782121854000,-564.42,0.000225,7]
[426030319,1782121854000,-277.44983836,0.00022522,2]
[426030309,1782121854000,-382.7,0.00022353,2]
[426030314,1782121854000,-166.66,0.00022473,2]
[426030318,1782121854000,-322.37792121,0.00022522,2]
[426030320,1782121854000,-157.57092906,0.00022522,2]
[426030323,1782121854000,-1068.11,0.00022522,2]
[426030322,1782121854000,-1030.0,0.00022522,2]
[426030321,1782121854000,-155.54611384,0.00022522,2]
[426030324,1782121854000,-1107.63007,0.00022522,2]
[426030329,1782121854000,-578.20924308,0.00022522,2]
[426030325,1782121854000,-1148.61238259,0.00022522,2]
[426030312,1782121854000,-1723.43,0.00022466,2]
[426030297,1782121854000,-398.0,0.00022,2]
[426030278,1782121854000,-194.55014576,0.00021973,4]
[426030296,1782121854000,-603.0,0.00022,2]
[426030327,1782121854000,-1191.11104074,0.00022522,2]
[426030279,1782121854000,-268.71297991,0.00021973,4]
[426030280,1782121854000,-155.50999753,0.00021973,4]
[426030281,1782121854000,-288.1484119,0.00021973,4]
[426030276,1782121854000,-200.0,0.00021918,2]
[426030277,1782121854000,-785.0,0.00021936,2]
[426030282,1782121854000,-48597.36051709,0.00021978,2]
[426030286,1782121854000,-778.83,0.00021999,2]
[426030287,1782121854000,-781.55,0.00021999,2]
[426030285,1782121854000,-500.0,0.00021999,2]
[426030284,1782121854000,-44330.9069104,0.00021983,2]
[426030303,1782121854000,-151.0,0.00022006,2]
[426030283,1782121854000,-500.0,0.00021982,2]
[426030288,1782121854000,-1595.89,0.00021999,2]
[426030290,1782121854000,-500.0,0.00021999,2]
[426030292,1782121854000,-151.0,0.00022,2]
[426030291,1782121854000,-1015.0,0.00022,2]
[426030304,1782121854000,-200.0,0.00022006,2]
[426030294,1782121854000,-180.0,0.00022,2]
[426030293,1782121854000,-502.0,0.00022,2]
[426030295,1782121854000,-178.0,0.00022,2]
[426030300,1782121854000,-163.0,0.00022,2]
[426030301,1782121854000,-164.0,0.00022,2]
[426030302,1782121854000,-150.0,0.00022,2]
[426030289,1782121854000,-500.0,0.00021999,2]
[426030328,1782121854000,-1235.18214925,0.00022522,2]
[426030332,1782121854000,-1328.27659266,0.00022522,2]
[426030330,1782121854000,-1280.88388877,0.00022522,2]
[426030358,1782121854000,-1776.30922209,0.00022522,2]
[426030356,1782121854000,-1712.93078311,0.00022522,2]
[426030363,1782121854000,-1910.18787185,0.00022522,2]
[426030362,1782121854000,-152.0,0.00022522,2]
[426030364,1782121854000,-500.0,0.00022522,2]
[426030366,1782121854000,-152.0,0.00022522,2]
[426030365,1782121854000,-1980.8648231,0.00022522,2]
[426030361,1782121854000,-500.0,0.00022522,2]
[426030369,1782121854000,-500.0,0.00022522,2]
[426030370,1782121854000,-152.0,0.00022522,2]
[426030367,1782121854000,-500.0,0.00022522,2]
[426030359,1782121854000,-152.0,0.00022522,2]
[426030368,1782121854000,-2054.15682156,0.00022522,2]
[426030371,1782121854000,-500.0,0.00022522,2]
[426030376,1782121854000,-152.0,0.00022522,2]
[426030372,1782121854000,-152.0,0.00022522,2]
[426030373,1782121854000,-500.0,0.00022522,2]
[426030375,1782121854000,-152.0,0.00022522,2]
[426030374,1782121854000,-152.0,0.00022522,2]
[426030377,1782121854000,-152.0,0.00022522,2]
[426030326,1782121854000,-174.61919141,0.00022522,2]
[426030380,1782121854000,-151.0,0.00022554,2]
[426030382,1782121854000,-2236.95670847,0.00022554,2]
[426030381,1782121854000,-200.0,0.00022554,2]
[426030378,1782121854000,-152.0,0.00022522,2]
[426030360,1782121854000,-1842.0326633,0.00022522,2]
[426030379,1782121854000,-150.0,0.0002254,2]
[426030355,1782121854000,-500.0,0.00022522,2]
[426030357,1782121854000,-500.0,0.00022522,2]
[426030343,1782121854000,-151.0,0.00022522,2]
[426030331,1782121854000,-8882.6885148,0.00022522,2]
[426030335,1782121854000,-500.0,0.00022522,2]
[426030337,1782121854000,-1428.38747117,0.00022522,2]
[426030334,1782121854000,-1377.42282658,0.00022522,2]
[426030333,1782121854000,-151.0,0.00022522,2]
[426030336,1782121854000,-670.58624095,0.00022522,2]
[426030338,1782121854000,-151.0,0.00022522,2]
[426030339,1782121854000,-194.72792766,0.00022522,2]
[426030341,1782121854000,-1481.2378076,0.00022522,2]
[426030342,1782121854000,-203.97593572,0.00022522,2]
[426030344,1782121854000,-1536.04360648,0.00022522,2]
[426030340,1782121854000,-500.0,0.00022522,2]
[426030352,1782121854000,-203.00155573,0.00022522,2]
[426030351,1782121854000,-500.0,0.00022522,2]
[426030350,1782121854000,-1592.87721992,0.00022522,2]
[426030354,1782121854000,-152.0,0.00022522,2]
[426030353,1782121854000,-1651.81367706,0.00022522,2]
[426030349,1782121854000,-152.0,0.00022522,2]
[426030346,1782121854000,-152.0,0.00022522,2]
[426030345,1782121854000,-500.0,0.00022522,2]
[426030347,1782121854000,-788.85102399,0.00022522,2]
[426030348,1782121854000,-500.0,0.00022522,2]
[426030414,1782121855000,-178.0,0.00023,2]
[426030409,1782121855000,-151.0,0.00022962,2]
[426030410,1782121855000,-1015.0,0.00023,2]
[426030407,1782121855000,-785.0,0.00022933,2]
[426030406,1782121855000,-151.0,0.00022907,2]
[426030408,1782121855000,-277.44983836,0.00022962,2]
[426030412,1782121855000,-502.0,0.00023,2]
[426030417,1782121855000,-505.0,0.00023,4]
[426030411,1782121855000,-151.0,0.00023,2]
[426030416,1782121855000,-398.0,0.00023,2]
[426030420,1782121855000,-164.0,0.00023,2]
[426030425,1782121855000,-322.37792121,0.0002307,2]
[426030415,1782121855000,-603.0,0.00023,2]
[426030421,1782121855000,-206.0,0.00023009,2]
[426030419,1782121855000,-163.0,0.00023,2]
[426030423,1782121855000,-151.0,0.00023017,2]
[426030422,1782121855000,-277.44983836,0.00023017,2]
[426030427,1782121855000,-151.0,0.0002307,2]
[426030437,1782121855000,-151.0,0.00023127,2]
[426030405,1782121855000,-277.44983836,0.00022907,2]
[426030418,1782121855000,-1779.0,0.00023,2]
[426030402,1782121855000,-236.31465493,0.0002285,2]
[426030395,1782121855000,-1719.34,0.00022691,2]
[426030404,1782121855000,-151.0,0.00022852,2]
[426030426,1782121855000,-181.08010149,0.0002307,2]
[426030383,1782121855000,-277.44983836,0.00022577,2]
[426030389,1782121855000,-180.41387865,0.0002265,2]
[426030388,1782121855000,-151.29119052,0.0002265,2]
[426030387,1782121855000,-151.0,0.00022632,2]
[426030385,1782121855000,-785.0,0.000226,2]
[426030384,1782121855000,-151.0,0.00022577,2]
[426030386,1782121855000,-277.44983836,0.00022632,2]
[426030390,1782121855000,-168.16231557,0.00022651,2]
[426030413,1782121855000,-180.0,0.00023,2]
[426030392,1782121855000,-151.0,0.00022687,2]
[426030394,1782121855000,-820.21,0.00022691,2]
[426030393,1782121855000,-2696.35,0.00022691,2]
[426030396,1782121855000,-277.44983836,0.00022742,2]
[426030397,1782121855000,-151.0,0.00022742,2]
[426030400,1782121855000,-151.0,0.00022797,2]
[426030401,1782121855000,-1337.69,0.00022809,2]
[426030398,1782121855000,-151.0,0.00022796,2]
[426030399,1782121855000,-277.44983836,0.00022797,2]
[426030403,1782121855000,-277.44983836,0.00022852,2]
[426030391,1782121855000,-277.44983836,0.00022687,2]
[426030428,1782121855000,-151.0,0.0002307,2]
[426030424,1782121855000,-8325.99133496,0.00023024,7]
[426030430,1782121855000,-788.85102399,0.0002307,2]
[426030454,1782121855000,-187.78006524,0.00023618,2]
[426030458,1782121855000,-788.85102399,0.00023618,2]
[426030456,1782121855000,-151.0,0.00023618,2]
[426030457,1782121855000,-209.40437684,0.00023618,2]
[426030455,1782121855000,-151.0,0.00023618,2]
[426030459,1782121855000,-151.0,0.0002365,2]
[426030460,1782121855000,-200.0,0.0002365,2]
[426030468,1782121855000,-505.0,0.0002375,5]
[426030463,1782121855000,-500.0,0.00023664,2]
[426030465,1782121855000,-150.0,0.00023667,2]
[426030469,1782121855000,-166.66,0.00023865,2]
[426030467,1782121855000,-156.2400418,0.00023667,2]
[426030464,1782121855000,-44330.9069104,0.00023665,2]
[426030474,1782121855000,-151.0,0.00024,2]
[426030472,1782121855000,-552.0,0.00023973,2]
[426030470,1782121855000,-151.0,0.00023892,2]
[426030471,1782121855000,-785.0,0.0002393,2]
[426030473,1782121855000,-1015.0,0.00024,2]
[426030476,1782121855000,-502.0,0.00024,2]
[426030475,1782121855000,-564.42,0.00024,7]
[426030432,1782121855000,-151.0,0.00023072,2]
[426030453,1782121855000,-322.37792121,0.00023618,2]
[426030462,1782121855000,-48597.36051709,0.00023662,2]
[426030466,1782121855000,-156.2400418,0.00023667,2]
[426030461,1782121855000,-943.30181057,0.0002365,2]
[426030450,1782121855000,-226.97211214,0.00023561,7]
[426030429,1782121855000,-201.93286098,0.0002307,2]
[426030434,1782121855000,-200.0,0.00023103,2]
[426030436,1782121855000,-277.44983836,0.00023127,2]
[426030433,1782121855000,-151.0,0.00023103,2]
[426030477,1782121855000,-180.0,0.00024,2]
[426030435,1782121855000,-2319.72410669,0.00023103,2]
[426030438,1782121855000,-166.66,0.00023169,2]
[426030442,1782121855000,-200.0,0.00023256,2]
[426030439,1782121855000,-277.44983853,0.00023182,2]
[426030431,1782121855000,-277.44983836,0.00023072,2]
[426030446,1782121855000,-200.0,0.00023312,2]
[426030449,1782121855000,-11265.3585,0.00023524,7]
[426030441,1782121855000,-1113.10721287,0.00023229,2]
[426030444,1782121855000,-216.34046652,0.00023264,2]
[426030443,1782121855000,-190.98196405,0.0002326,21]
[426030445,1782121855000,-785.0,0.00023265,2]
[426030440,1782121855000,-151.0,0.00023182,2]
[426030447,1782121855000,-151.0,0.00023344,2]
[426030451,1782121855000,-398.0,0.00023584,7]
[426030452,1782121855000,-785.0,0.00023598,2]
[426030448,1782121855000,-1337.69,0.00023494,2]
[426030506,1782121856000,-839.14,0.00024658,2]
[426030517,1782121856000,-1595.89,0.00024725,2]
[426030515,1782121856000,-778.83,0.00024725,2]
[426030514,1782121856000,-500.0,0.00024725,2]
[426030511,1782121856000,-151.0,0.00024714,2]
[426030509,1782121856000,-201.93286098,0.00024714,2]
[426030516,1782121856000,-781.55,0.00024725,2]
[426030508,1782121856000,-322.37792121,0.00024714,2]
[426030512,1782121856000,-225.18697532,0.00024714,2]
[426030523,1782121856000,-1360.0,0.0002476,2]
[426030510,1782121856000,-151.0,0.00024714,2]
[426030513,1782121856000,-788.85102399,0.00024714,2]
[426030520,1782121856000,-200.0,0.00024747,2]
[426030521,1782121856000,-3559.0,0.0002476,2]
[426030525,1782121856000,-1229.0,0.0002476,2]
[426030528,1782121856000,-200.0,0.00024766,2]
[426030522,1782121856000,-1276.0,0.0002476,2]
[426030519,1782121856000,-151.0,0.00024747,2]
[426030518,1782121856000,-500.0,0.00024725,2]
[426030524,1782121856000,-383.0,0.0002476,2]
[426030527,1782121856000,-6082.0,0.0002476,2]
[426030530,1782121856000,-785.0,0.00024927,2]
[426030529,1782121856000,-150.0,0.0002485,2]
[426030540,1782121856000,-182.58537308,0.00025,2]
[426030541,1782121856000,-394.0,0.00025169,2]
[426030526,1782121856000,-3648.0,0.0002476,2]
[426030507,1782121856000,-1000.0,0.00024658,2]
[426030485,1782121856000,-285.0,0.00024065,2]
[426030498,1782121856000,-151.0,0.0002444,2]
[426030479,1782121856000,-603.0,0.00024,2]
[426030478,1782121856000,-178.0,0.00024,2]
[426030482,1782121856000,-164.0,0.00024,2]
[426030481,1782121856000,-163.0,0.00024,2]
[426030480,1782121856000,-398.0,0.00024,2]
[426030533,1782121856000,-166.78520518,0.00025,2]
[426030484,1782121856000,-200.0,0.00024011,2]
[426030483,1782121856000,-216.35787048,0.00024,7]
[426030486,1782121856000,-322.37792121,0.00024166,2]
[426030488,1782121856000,-151.0,0.00024166,2]
[426030493,1782121856000,-200.0,0.00024198,2]
[426030489,1782121856000,-151.0,0.00024166,2]
[426030503,1782121856000,-200.0,0.00024614,2]
[426030492,1782121856000,-151.0,0.00024198,2]
[426030491,1782121856000,-788.85102399,0.00024166,2]
[426030487,1782121856000,-194.72792766,0.00024166,2]
[426030490,1782121856000,-217.15233878,0.00024166,2]
[426030495,1782121856000,-716.796709,0.00024268,7]
[426030499,1782121856000,-408.81471469,0.00024485,2]
[426030502,1782121856000,-785.0,0.00024595,2]
[426030496,1782121856000,-382.7,0.00024324,2]
[426030501,1782121856000,-166.66,0.00024561,2]
[426030497,1782121856000,-154.55431881,0.00024324,2]
[426030500,1782121856000,-505.0,0.000245,6]
[426030505,1782121856000,-171.64,0.00024658,8]
[426030504,1782121856000,-573.95,0.00024625,7]
[426030494,1782121856000,-785.0,0.00024262,2]
[426030534,1782121856000,-502.70946919,0.00025,2]
[426030531,1782121856000,-151.0,0.00024988,2]
[426030536,1782121856000,-188.23602648,0.00025,2]
[426030571,1782121856000,-185.50341583,0.00025466,2]
[426030568,1782121856000,-166.64057669,0.00025465,2]
[426030579,1782121856000,-182.11056311,0.00025472,2]
[426030573,1782121856000,-189.84485165,0.00025466,2]
[426030569,1782121856000,-169.94275443,0.00025466,2]
[426030577,1782121856000,-218.55083892,0.00025472,2]
[426030572,1782121856000,-190.53652359,0.00025466,2]
[426030574,1782121856000,-150.0074619,0.00025466,2]
[426030575,1782121856000,-182.95587175,0.00025466,2]
[426030578,1782121856000,-692.27287416,0.00025472,2]
[426030570,1782121856000,-195.35288652,0.00025466,2]
[426030576,1782121856000,-177.29533429,0.00025466,2]
[426030564,1782121856000,-160.5356423,0.00025465,2]
[426030581,1782121856000,-158.12530465,0.00025472,2]
[426030584,1782121856000,-184.26468098,0.00025472,2]
[426030583,1782121856000,-194.99923137,0.00025472,2]
[426030582,1782121856000,-204.16758155,0.00025472,2]
[426030580,1782121856000,-159.54773013,0.00025472,2]
[426030590,1782121856000,-151.0,0.00025538,2]
[426030588,1782121856000,-151.0,0.00025536,2]
[426030587,1782121856000,-200.0,0.00025521,2]
[426030589,1782121856000,-203378.09169,0.00025538,2]
[426030585,1782121856000,-160.91673313,0.00025472,2]
[426030586,1782121856000,-564.42,0.000255,7]
[426030592,1782121856000,-2000.0,0.000256,2]
[426030535,1782121856000,-188.94528994,0.00025,2]
[426030591,1782121856000,-158.843375,0.00025538,2]
[426030563,1782121856000,-166.20179216,0.00025465,2]
[426030593,1782121856000,-1784.25,0.00025726,2]
[426030562,1782121856000,-175.55783824,0.00025465,2]
[426030537,1782121856000,-605.73097188,0.00025,2]
[426030538,1782121856000,-412.51646338,0.00025,2]
[426030539,1782121856000,-173.91209571,0.00025,2]
[426030532,1782121856000,-1030.86447896,0.00025,2]
[426030542,1782121856000,-500.0,0.00025205,30]
[426030544,1782121856000,-500.0,0.00025205,30]
[426030546,1782121856000,-599.60298507,0.00025261,2]
[426030559,1782121856000,-203.79051338,0.00025392,2]
[426030547,1782121856000,-695.39793187,0.00025261,2]
[426030548,1782121856000,-322.37792121,0.00025262,2]
[426030553,1782121856000,-788.85102399,0.00025262,2]
[426030550,1782121856000,-151.0,0.00025262,2]
[426030549,1782121856000,-209.40437684,0.00025262,2]
[426030545,1782121856000,-505.0,0.0002525,7]
[426030551,1782121856000,-233.5188934,0.00025262,2]
[426030554,1782121856000,-181.73462267,0.00025294,2]
[426030565,1782121856000,-172.8233428,0.00025465,2]
[426030558,1782121856000,-203.79051338,0.00025392,2]
[426030561,1782121856000,-171.20767822,0.00025465,2]
[426030557,1782121856000,-44330.9069104,0.00025348,2]
[426030560,1782121856000,-166.60320967,0.00025392,2]
[426030566,1782121856000,-152.64564695,0.00025465,2]
[426030556,1782121856000,-48597.36051709,0.00025346,2]
[426030567,1782121856000,-173.69367037,0.00025465,2]
[426030543,1782121856000,-500.0,0.00025205,30]
[426030552,1782121856000,-151.0,0.00025262,2]
[426030555,1782121856000,-200.0,0.00025294,2]
[426030629,1782121857000,-778.83,0.00026414,2]
[426030634,1782121857000,-1595.89,0.00026414,2]
[426030631,1782121857000,-781.55,0.00026414,2]
[426030628,1782121857000,-500.0,0.00026414,2]
[426030630,1782121857000,-778.83,0.00026414,2]
[426030617,1782121857000,-781.55,0.00026286,2]
[426030637,1782121857000,-441.76412,0.00026425,2]
[426030626,1782121857000,-251.11897888,0.00026358,2]
[426030625,1782121857000,-788.85102399,0.00026358,2]
[426030624,1782121857000,-151.0,0.00026358,2]
[426030627,1782121857000,-500.0,0.00026414,2]
[426030636,1782121857000,-500.0,0.00026414,2]
[426030645,1782121857000,-1595.89,0.00026499,2]
[426030635,1782121857000,-500.0,0.00026414,2]
[426030632,1782121857000,-781.55,0.00026414,2]
[426030639,1782121857000,-525.7749192,0.00026499,2]
[426030649,1782121857000,-50000.0,0.000265,7]
[426030638,1782121857000,-460.690286,0.00026425,2]
[426030640,1782121857000,-778.83,0.00026499,2]
[426030641,1782121857000,-778.83,0.00026499,2]
[426030642,1782121857000,-781.55,0.00026499,2]
[426030644,1782121857000,-1595.89,0.00026499,2]
[426030647,1782121857000,-500.0,0.00026499,2]
[426030643,1782121857000,-781.55,0.00026499,2]
[426030619,1782121857000,-500.0,0.00026286,2]
[426030633,1782121857000,-1595.89,0.00026414,2]
[426030623,1782121857000,-225.18697532,0.00026358,2]
[426030610,1782121857000,-1917.0,0.000261,2]
[426030621,1782121857000,-1874.76,0.00026357,2]
[426030646,1782121857000,-500.0,0.00026499,2]
[426030594,1782121857000,-39422.74,0.00025786,2]
[426030597,1782121857000,-151.0,0.0002581,2]
[426030599,1782121857000,-151.0,0.0002581,2]
[426030601,1782121857000,-292.09502455,0.00025842,2]
[426030596,1782121857000,-217.15233878,0.0002581,2]
[426030602,1782121857000,-176.43495263,0.00025844,2]
[426030595,1782121857000,-322.37792121,0.0002581,2]
[426030598,1782121857000,-242.15909246,0.0002581,2]
[426030603,1782121857000,-1100.0,0.000259,9]
[426030600,1782121857000,-788.85102399,0.0002581,2]
[426030605,1782121857000,-505.0,0.00026,7]
[426030615,1782121857000,-500.0,0.00026286,2]
[426030604,1782121857000,-200.0,0.00025915,2]
[426030614,1782121857000,-500.0,0.00026285,2]
[426030608,1782121857000,-2876.0,0.000261,2]
[426030606,1782121857000,-1113.10721287,0.00026065,2]
[426030607,1782121857000,-150.0,0.00026093,2]
[426030612,1782121857000,-1301.0,0.000261,2]
[426030611,1782121857000,-312.0,0.000261,2]
[426030609,1782121857000,-455.0,0.000261,2]
[426030613,1782121857000,-200.0,0.00026276,2]
[426030620,1782121857000,-382.7,0.00026296,2]
[426030618,1782121857000,-1595.89,0.00026286,2]
[426030616,1782121857000,-778.83,0.00026286,2]
[426030622,1782121857000,-322.37792121,0.00026358,2]
[426030648,1782121857000,-500.0,0.00026499,2]
[426030656,1782121857000,-8490.91,0.000265,5]
[426030651,1782121857000,-50000.0,0.000265,7]
[426030681,1782121857000,-243.27897111,0.00026739,2]
[426030682,1782121857000,-339.88550887,0.0002674,2]
[426030684,1782121857000,-371.00683167,0.0002674,2]
[426030683,1782121857000,-390.70577303,0.0002674,2]
[426030685,1782121857000,-381.07304719,0.0002674,2]
[426030689,1782121857000,-365.91174351,0.0002674,2]
[426030686,1782121857000,-379.68970331,0.0002674,2]
[426030690,1782121857000,-354.59066857,0.0002674,2]
[426030692,1782121857000,-519.20465562,0.00026746,2]
[426030691,1782121857000,-163.4724224,0.00026746,2]
[426030688,1782121857000,-300.01492379,0.0002674,2]
[426030687,1782121857000,-186.10420725,0.0002674,2]
[426030704,1782121857000,-505.0,0.0002675,8]
[426030694,1782121857000,-154.7020948,0.00026746,2]
[426030705,1782121857000,-200.0,0.000268,9]
[426030697,1782121857000,-319.09546027,0.00026746,2]
[426030700,1782121857000,-389.99846273,0.00026746,2]
[426030698,1782121857000,-316.25060929,0.00026746,2]
[426030693,1782121857000,-364.22112622,0.00026746,2]
[426030702,1782121857000,-152.61646468,0.00026746,2]
[426030695,1782121857000,-329.7814608,0.00026746,2]
[426030699,1782121857000,-408.3351631,0.00026746,2]
[426030701,1782121857000,-368.52936196,0.00026746,2]
[426030696,1782121857000,-195.6836118,0.00026746,2]
[426030650,1782121857000,-50000.0,0.000265,5]
[426030679,1782121857000,-223.49105104,0.00026739,2]
[426030680,1782121857000,-236.23414528,0.00026739,2]
[426030703,1782121857000,-321.83346627,0.00026746,2]
[426030676,1782121857000,-347.38734075,0.00026739,2]
[426030674,1782121857000,-229.93832611,0.00026739,2]
[426030660,1782121857000,-226.05870673,0.00026739,2]
[426030657,1782121857000,-1000.0,0.000266,2]
[426030655,1782121857000,-50000.0,0.000265,7]
[426030652,1782121857000,-50000.0,0.000265,5]
[426030706,1782121857000,-1141.31291855,0.00026849,5]
[426030653,1782121857000,-50000.0,0.000265,7]
[426030654,1782121857000,-50000.0,0.000265,5]
[426030659,1782121857000,-2000.0,0.00026667,7]
[426030662,1782121857000,-342.41535644,0.00026739,2]
[426030663,1782121857000,-224.71971872,0.00026739,2]
[426030661,1782121857000,-237.03304275,0.00026739,2]
[426030658,1782121857000,-310.0,0.000266,2]
[426030667,1782121857000,-351.11567648,0.00026739,2]
[426030664,1782121857000,-225.64827983,0.00026739,2]
[426030678,1782121857000,-225.15466045,0.00026739,2]
[426030675,1782121857000,-171.66425818,0.00026739,2]
[426030672,1782121857000,-305.29129391,0.00026739,2]
[426030666,1782121857000,-210.32996405,0.00026739,2]
[426030673,1782121857000,-345.6466856,0.00026739,2]
[426030671,1782121857000,-321.0712846,0.00026739,2]
[426030665,1782121857000,-226.67051891,0.00026739,2]
[426030668,1782121857000,-332.40358432,0.00026739,2]
[426030670,1782121857000,-204.80700667,0.00026739,2]
[426030669,1782121857000,-200.18459045,0.00026739,2]
[426030677,1782121857000,-333.28115338,0.00026739,2]
[426030731,1782121858000,-200.0,0.00026926,2]
[426030733,1782121858000,-200.0,0.00026926,2]
[426030735,1782121858000,-200.0,0.00026926,2]
[426030732,1782121858000,-200.0,0.00026926,2]
[426030734,1782121858000,-200.0,0.00026926,2]
[426030741,1782121858000,-200.0,0.00026926,2]
[426030739,1782121858000,-200.0,0.00026926,2]
[426030738,1782121858000,-200.0,0.00026926,2]
[426030736,1782121858000,-200.0,0.00026926,2]
[426030748,1782121858000,-200.0,0.00026926,2]
[426030742,1782121858000,-200.0,0.00026926,2]
[426030740,1782121858000,-200.0,0.00026926,2]
[426030743,1782121858000,-200.0,0.00026926,2]
[426030753,1782121858000,-200.0,0.00026926,2]
[426030755,1782121858000,-200.0,0.00026926,2]
[426030747,1782121858000,-200.0,0.00026926,2]
[426030745,1782121858000,-200.0,0.00026926,2]
[426030730,1782121858000,-200.0,0.00026926,2]
[426030751,1782121858000,-200.0,0.00026926,2]
[426030737,1782121858000,-200.0,0.00026926,2]
[426030726,1782121858000,-200.0,0.00026926,2]
[426030713,1782121858000,-200.0,0.000269,9]
[426030728,1782121858000,-200.0,0.00026926,2]
[426030746,1782121858000,-200.0,0.00026926,2]
[426030707,1782121858000,-1090.5745426,0.00026849,5]
[426030710,1782121858000,-1081.49718828,0.00026849,5]
[426030712,1782121858000,-460.690286,0.00026866,2]
[426030718,1782121858000,-260.4103811,0.00026906,2]
[426030717,1782121858000,-788.85102399,0.00026906,2]
[426030711,1782121858000,-1154.47979548,0.00026849,5]
[426030714,1782121858000,-322.37792121,0.00026906,2]
[426030708,1782121858000,-1123.03838423,0.00026849,5]
[426030725,1782121858000,-200.0,0.00026926,2]
[426030716,1782121858000,-151.0,0.00026906,2]
[426030715,1782121858000,-233.5188934,0.00026906,2]
[426030719,1782121858000,-200.0,0.00026926,2]
[426030721,1782121858000,-200.0,0.00026926,2]
[426030720,1782121858000,-200.0,0.00026926,2]
[426030727,1782121858000,-200.0,0.00026926,2]
[426030723,1782121858000,-200.0,0.00026926,2]
[426030722,1782121858000,-200.0,0.00026926,2]
[426030729,1782121858000,-200.0,0.00026926,2]
[426030724,1782121858000,-200.0,0.00026926,2]
[426030709,1782121858000,-1052.97804201,0.00026849,5]
[426030750,1782121858000,-200.0,0.00026926,2]
[426030744,1782121858000,-200.0,0.00026926,2]
[426030786,1782121858000,-449.44997712,0.00027123,7]
[426030776,1782121858000,-447.9062536,0.00027029,2]